{"text_format":"3","workbook":"xlsx","n_sheets":2,"sheets":["Início","Orçamento de casamento"],"read":"whole","date_system":"1900"}

{"sheet":"Início","index":0,"n_rows":7,"n_cols":2,"rows_kept":7}
[null,"SOBRE ESTE MODELO"]
[null,"Use este modelo para registrar suas despesas de casamento em vários itens e rastreá-las em relação aos valores orçados."]
[null,"Insira despesas em vestuário, decoração, presentes, flores, música, fotografia, festa, papel de carta, transporte e itens variados em suas respectivas tabelas."]
[null,"As despesas reais totais e estimadas totais são calculadas automaticamente."]
[null,"Observação: "]
[null,"Foram fornecidas instruções adicionais na coluna A na planilha ORÇAMENTO DE CASAMENTO. Este texto está oculto de propósito. Para removê-lo, selecione a coluna A e selecione Excluir. Para reexibir o texto, selecione a coluna A e altere a cor da fonte."]
[null,"Para saber mais sobre tabelas, pressione SHIFT e, em seguida, F10 dentro de uma tabela, selecione a opção TABELA e, em seguida, selecione TEXTO ALTERNATIVO."]

{"sheet":"Orçamento de casamento","index":1,"n_rows":93,"n_cols":4,"rows_kept":93,"merged":[[0,1,0,3],[2,1,2,3],[6,1,6,3],[15,1,15,3],[25,1,25,3],[34,1,34,3],[43,1,43,3],[50,1,50,3],[59,1,59,3],[68,1,68,3],[77,1,77,3],[85,1,85,3]]}
[null,"ORÇAMENTO DE CASAMENTO"]
[]
[null,"DESPESAS TOTAIS "]
[null,"Item ","Valor estimado","Real"]
[null,"Despesas totais ",{"$f":"SUM(Vestuário[[#Totals],[Valor estimado]],Decoração[[#Totals],[Valor estimado]],Presentes[[#Totals],[Valor estimado]],Flores[[#Totals],[Valor estimado]],Música[[#Totals],[Valor estimado]],Fotografia[[#Totals],[Valor estimado]],Festa[[#Totals],[Valor estimado]],PapelariaEimpressão[[#Totals],[Valor estimado]],Transporte[[#Totals],[Valor estimado]],OutrasDespesas[[#Totals],[Valor estimado]])","v":0},{"$f":"SUM(Vestuário[[#Totals],[Real]],Decoração[[#Totals],[Real]],Presentes[[#Totals],[Real]],Flores[[#Totals],[Real]],Música[[#Totals],[Real]],Fotografia[[#Totals],[Real]],Festa[[#Totals],[Real]],PapelariaEimpressão[[#Totals],[Real]],Transporte[[#Totals],[Real]],OutrasDespesas[[#Totals],[Real]],)","v":0}]
[]
[null,"VESTUÁRIO"]
[null,"Item ","Valor estimado","Real"]
[null,"Anel de noivado"]
[null,"Alianças de casamento"]
[null,"Vestido de noiva"]
[null,"Véu/tiara"]
[null,"Outros:"]
[null,"Total de vestuário",{"$f":"SUBTOTAL(109,Vestuário[Valor estimado])","v":0},{"$f":"SUBTOTAL(109,Vestuário[Real])","v":0}]
[]
[null,"DECORAÇÃO"]
[null,"Item ","Valor estimado","Real"]
[null,"Arranjos para os bancos da igreja/outros assentos"]
[null,"Centros de mesa (exceto flores)"]
[null,"Velas"]
[null,"Iluminação"]
[null,"Balões"]
[null,"Outros:"]
[null,"Total de decoração",{"$f":"SUBTOTAL(109,Decoração[Valor estimado])","v":0},{"$f":"SUBTOTAL(109,Decoração[Real])","v":0}]
[]
[null,"PRESENTES"]
[null,"Item ","Valor estimado","Real"]
[null,"Participantes"]
[null,"Noivos"]
[null,"Pais"]
[null,"Leitores/outros participantes"]
[null,"Outros:"]
[null,"Total de presentes",{"$f":"SUBTOTAL(109,Presentes[Valor estimado])","v":0},{"$f":"SUBTOTAL(109,Presentes[Real])","v":0}]
[]
[null,"FLORES"]
[null,"Item ","Valor estimado","Real"]
[null,"Buquês"]
[null,"Flores de lapela"]
[null,"Corsages"]
[null,"Cerimônia"]
[null,"Outros:"]
[null,"Total de flores",{"$f":"SUBTOTAL(109,Flores[Valor estimado])","v":0},{"$f":"SUBTOTAL(109,Flores[Real])","v":0}]
[]
[null,"MÚSICA"]
[null,"Item ","Valor estimado","Real"]
[null,"Músicos para a cerimônia"]
[null,"Banda/DJ para a festa"]
[null,"Outros:"]
[null,"Total de música",{"$f":"SUBTOTAL(109,Música[Valor estimado])","v":0},{"$f":"SUBTOTAL(109,Música[Real])","v":0}]
[]
[null,"FOTOGRAFIA"]
[null,"Item ","Valor estimado","Real"]
[null,"Trajes formais"]
[null,"Instantâneas"]
[null,"Impressões adicionais"]
[null,"Álbuns de fotos"]
[null,"Outros:"]
[null,"Total de fotografia",{"$f":"SUBTOTAL(109,Fotografia[Valor estimado])","v":0},{"$f":"SUBTOTAL(109,Fotografia[Real])","v":0}]
[]
[null,"FESTA "]
[null,"Item ","Valor estimado","Real"]
[null,"Taxas de salas/salão"]
[null,"Mesas e cadeiras"]
[null,"Comida"]
[null,"Toalha de mesa"]
[null,"Outros:"]
[null,"Total de festa (exclui música e decoração)",{"$f":"SUBTOTAL(109,Festa[Valor estimado])","v":0},{"$f":"SUBTOTAL(109,Festa[Real])","v":0}]
[]
[null,"PAPELARIA E IMPRESSÃO"]
[null,"Item ","Valor estimado","Real"]
[null,"Convites"]
[null,"Comunicados"]
[null,"Cartões de agradecimento"]
[null,"Papel de carta pessoal"]
[null,"Outros:"]
[null,"Total de papelaria/impressão",{"$f":"SUBTOTAL(109,PapelariaEimpressão[Valor estimado])","v":0},{"$f":"SUBTOTAL(109,PapelariaEimpressão[Real])","v":0}]
[]
[null,"TRANSPORTE"]
[null,"Item ","Valor estimado","Real"]
[null,"Limusines/carrinhos"]
[null,"Estacionamento"]
[null,"Táxis"]
[null,"Outros:"]
[null,"Total de transporte",{"$f":"SUBTOTAL(109,Transporte[Valor estimado])","v":0},{"$f":"SUBTOTAL(109,Transporte[Real])","v":0}]
[]
[null,"OUTRAS DESPESAS"]
[null,"Item ","Valor estimado","Real"]
[null,"Celebrante"]
[null,"Taxa da igreja/local da cerimônia"]
[null,"Coordenador de casamento"]
[null,"Jantar de ensaio"]
[null,"Outros:"]
[null,"Total de outras despesas",{"$f":"SUBTOTAL(109,OutrasDespesas[Valor estimado])","v":0},{"$f":"SUBTOTAL(109,OutrasDespesas[Real])","v":0}]